fUST/lending_fUST_20250208
["ID","MTS","AMOUNT","RATE_DAILY","PERIOD"]
[352123106,1738955445370,-500.0,0.00011095,2]
[352123109,1738955445379,-500.0,0.00011095,2]
[352123111,1738955445391,-863.99,0.00011095,2]
[352123113,1738955445400,-371.48801102,0.00011095,2]
[352123115,1738955445410,-500.0,0.00011095,2]
[352123117,1738955445420,-500.0,0.00011095,2]
[352123119,1738955445429,-500.0,0.00011095,2]
[352123121,1738955445440,-641.96367178,0.00011095,2]
[352123123,1738955445450,-500.0,0.00011095,2]
[352123124,1738955445459,-755.54,0.00011095,2]
[352123126,1738955445468,-500.0,0.00011095,2]
[352123128,1738955445478,-500.0,0.00011095,2]
[352123130,1738955445487,-799.74,0.00011095,2]
[352123133,1738955445497,-350.75112447,0.00011095,2]
[352123134,1738955445507,-500.0,0.00011095,2]
[352123137,1738955445516,-500.0,0.00011095,2]
[352123138,1738955445526,-557.83,0.00011095,2]
[352123140,1738955445535,-358.88,0.00011095,2]
[352123142,1738955445544,-500.0,0.00011095,2]
[352123144,1738955445553,-500.0,0.00011095,2]
[352123146,1738955445562,-500.0,0.00011095,2]
[352123148,1738955445571,-500.0,0.00011095,2]
[352123150,1738955445580,-500.0,0.00011095,2]
[352123152,1738955445589,-259.32308056,0.00011095,2]
[352123154,1738955445598,-500.0,0.00011095,2]
[352123156,1738955445607,-500.0,0.00011095,2]
[352123158,1738955445616,-500.0,0.00011095,2]
[352123160,1738955445626,-500.0,0.00011095,2]
[352123162,1738955445635,-786.11,0.00011095,2]
[352123164,1738955445644,-500.00000001,0.00011095,2]
[352123166,1738955445653,-502.59485842,0.00011095,2]
[352123168,1738955445667,-500.0,0.00011095,2]
[352123170,1738955445676,-515.65214503,0.00011095,2]
[352123172,1738955445686,-519.99234604,0.00011095,2]
[352123174,1738955445695,-500.0,0.00011095,2]
[352123176,1738955445705,-500.0,0.00011095,2]
[352123178,1738955445714,-500.0,0.00011095,2]
[352123179,1738955445723,-536.57,0.00011095,2]
[352123180,1738955445731,-500.0,0.00011095,2]
[352123181,1738955445740,-289.85139457,0.00011095,2]
[352123182,1738955445749,-500.0,0.00011095,2]
[352123183,1738955445759,-500.0,0.00011095,2]
[352123184,1738955445768,-500.0,0.00011095,2]
[352123185,1738955445778,-500.0,0.00011095,2]
[352123186,1738955445787,-430.85297543,0.00011095,2]
[352123187,1738955445795,-500.0,0.00011095,2]
[352123188,1738955445804,-500.0,0.00011095,2]
[352123189,1738955445813,-505.08567262,0.00011095,2]
[352123190,1738955445822,-500.0,0.00011095,2]
[352123191,1738955445831,-585.02631731,0.00011095,2]
[352123192,1738955445840,-500.0,0.00011095,2]
[352123193,1738955445849,-500.0,0.00011095,2]
[352123194,1738955445858,-500.0,0.00011095,2]
[352123195,1738955445867,-524.17210782,0.00011095,2]
[352123196,1738955445876,-714.74,0.00011095,2]
[352123198,1738955445885,-360.53905249,0.00011095,2]
[352123200,1738955445895,-754.06,0.00011095,2]
[352123202,1738955445904,-500.0,0.00011095,2]
[352123204,1738955445914,-500.0,0.00011095,2]
[352123208,1738955445923,-500.0,0.00011095,2]
[352123212,1738955445933,-185.55332611,0.00011095,2]
[352123215,1738955445943,-500.0,0.00011095,2]
[352123219,1738955445952,-1297.07,0.00011095,2]
[352123222,1738955445961,-500.0,0.00011095,2]
[352123225,1738955445970,-500.0,0.00011095,2]
[352123228,1738955445979,-540.94,0.00011095,2]
[352123230,1738955445988,-500.0,0.00011095,2]
[352123232,1738955445997,-500.0,0.00011095,2]
[352123234,1738955446007,-500.0,0.00011095,2]
[352123236,1738955446016,-500.0,0.00011095,2]
[352123238,1738955446027,-500.0,0.00011095,2]
[352123240,1738955446036,-500.0,0.00011095,2]
[352123242,1738955446046,-500.0,0.00011095,2]
[352123244,1738955446055,-500.0,0.00011095,2]
[352123246,1738955446065,-500.0,0.00011095,2]
[352123248,1738955446074,-500.0,0.00011095,2]
[352123250,1738955446083,-500.0,0.00011095,2]
[352123252,1738955446093,-500.0,0.00011095,2]
[352123255,1738955446105,-500.0,0.00011095,2]
[352123256,1738955446114,-500.0,0.00011095,2]
[352123258,1738955446124,-936.28,0.00011095,2]
[352123261,1738955446134,-500.0,0.00011095,2]
[352123262,1738955446144,-500.0,0.00011095,2]
[352123264,1738955446154,-615.81,0.00011095,2]
[352123266,1738955446166,-1407.23,0.00011095,2]
[352123268,1738955446177,-500.0,0.00011095,2]
[352123270,1738955446187,-500.0,0.00011095,2]
[352123273,1738955446197,-500.0,0.00011095,2]
[352123275,1738955446208,-696.18,0.00011095,2]
[352123277,1738955446218,-500.0,0.00011095,2]
[352123278,1738955446227,-500.0,0.00011095,2]
[352123280,1738955446237,-911.25,0.00011095,2]
[352123283,1738955446248,-6622.07,0.00011095,2]
[352123284,1738955446257,-640.95,0.00011095,2]
[352123286,1738955446267,-567.03014329,0.00011095,2]
[352123288,1738955446281,-500.0,0.00011095,2]
[352123290,1738955446291,-500.0,0.00011095,2]
[352123292,1738955446300,-500.0,0.00011095,2]
[352123294,1738955446310,-500.0,0.00011095,2]
[352123297,1738955446320,-500.0,0.00011095,2]
[352123298,1738955446330,-500.0,0.00011095,2]
[352123300,1738955446339,-500.0,0.00011095,2]
[352123302,1738955446348,-1041.08,0.00011095,2]
[352123304,1738955446357,-500.0,0.00011095,2]
[352123306,1738955446366,-500.0,0.00011095,2]
[352123308,1738955446375,-828.08,0.00011095,2]
[352123310,1738955446385,-500.0,0.00011095,2]
[352123312,1738955446394,-500.0,0.00011095,2]
[352123314,1738955446404,-500.0,0.00011095,2]
[352123316,1738955446416,-500.0,0.00011095,2]
[352123318,1738955446426,-500.0,0.00011095,2]
[352123320,1738955446435,-500.0,0.00011095,2]
[352123322,1738955446444,-800.95,0.00011095,2]
[352123324,1738955446454,-3056.32,0.00011095,2]
[352123326,1738955446464,-500.0,0.00011095,2]
[352123328,1738955446474,-500.0,0.00011095,2]
[352123330,1738955446484,-4322.17,0.00011095,2]
[352123332,1738955446493,-3676.41,0.00011095,2]
[352123334,1738955446502,-500.0,0.00011095,2]
[352123336,1738955446511,-500.0,0.00011095,2]
[352123338,1738955446520,-500.0,0.00011095,2]
[352123340,1738955446534,-2123.82,0.00011095,2]
[352123342,1738955446542,-500.0,0.00011095,2]
[352123344,1738955446551,-500.0,0.00011095,2]
[352123346,1738955446561,-500.0,0.00011095,2]
[352123348,1738955446570,-500.0,0.00011095,2]
[352123350,1738955446579,-500.0,0.00011095,2]
[352123352,1738955446588,-4689.15,0.00011095,2]
[352123354,1738955446598,-500.0,0.00011095,2]
[352123356,1738955446608,-500.0,0.00011095,2]
[352123358,1738955446617,-10250.45,0.00011095,2]
[352123360,1738955446627,-500.0,0.00011095,2]
[352123362,1738955446636,-479.3331166,0.00011095,2]
[352123364,1738955446645,-500.0,0.00011095,2]
[352123366,1738955446654,-500.0,0.00011095,2]
[352123368,1738955446664,-1881.21,0.00011095,2]
[352123370,1738955446673,-500.0,0.00011095,2]
[352123372,1738955446682,-932.82,0.00011095,2]
[352123374,1738955446691,-631.58,0.00011095,2]
[352123376,1738955446701,-500.0,0.00011095,2]
[352123378,1738955446710,-259.58287632,0.00011095,2]
[352123380,1738955446720,-500.0,0.00011095,2]
[352123382,1738955446729,-815.63,0.00011095,2]
[352123384,1738955446738,-500.0,0.00011095,2]
[352123386,1738955446747,-478.42018004,0.00011095,2]
[352123388,1738955446756,-500.0,0.00011095,2]
[352123390,1738955446767,-618.29,0.00011095,2]
[352123392,1738955446778,-500.0,0.00011095,2]
[352123394,1738955446788,-500.0,0.00011095,2]
[352123396,1738955446797,-511.34359771,0.00011095,2]
[352123398,1738955446807,-500.0,0.00011095,2]
[352123400,1738955446817,-2066.24,0.00011095,2]
[352123402,1738955446826,-500.0,0.00011095,2]
[352123404,1738955446836,-428.83655808,0.00011095,2]
[352123406,1738955446845,-2086.49,0.00011095,2]
[352123408,1738955446854,-500.0,0.00011095,2]
[352123410,1738955446864,-31944.38,0.00011095,2]
[352123412,1738955446874,-14925.32,0.00011095,2]
[352123414,1738955446883,-500.0,0.00011095,2]
[352123416,1738955446892,-1246.34,0.00011095,2]
[352123418,1738955446902,-458.54865058,0.00011095,2]
[352123420,1738955446912,-500.0,0.00011095,2]
[352123422,1738955446922,-5268.64,0.00011095,2]
[352123424,1738955446932,-500.0,0.00011095,2]
[352123426,1738955446941,-500.0,0.00011095,2]
[352123428,1738955446950,-500.0,0.00011095,2]
[352123430,1738955446960,-957.62,0.00011095,2]
[352123432,1738955446970,-2074.28,0.00011095,2]
[352123434,1738955446979,-18849.26,0.00011095,2]
[352123436,1738955446988,-2418.68,0.00011095,2]
[352123438,1738955446998,-1074.61,0.00011095,2]
[352123439,1738955447007,-500.0,0.00011095,2]
[352123441,1738955447017,-500.0,0.00011095,2]
[352123444,1738955447028,-500.0,0.00011095,2]
[352123445,1738955447038,-500.0,0.00011095,2]
[352123447,1738955447048,-500.0,0.00011095,2]
[352123450,1738955447057,-500.0,0.00011095,2]
[352123452,1738955447067,-994.09,0.00011095,2]
[352123454,1738955447078,-2092.0,0.00011095,2]
[352123455,1738955447086,-500.0,0.00011095,2]
[352123457,1738955447096,-500.0,0.00011095,2]
[352123460,1738955447109,-500.0,0.00011095,2]
[352123461,1738955447123,-1598.27,0.00011095,2]
[352123463,1738955447132,-640.03,0.00011095,2]
[352123465,1738955447142,-576.17,0.00011095,2]
[352123467,1738955447151,-532.99,0.00011095,2]
[352123469,1738955447171,-500.0,0.00011095,2]
[352123471,1738955447188,-524.48,0.00011095,2]
[352123473,1738955447197,-500.0,0.00011095,2]
[352123486,1738955447207,-500.0,0.00011095,2]
[352123490,1738955447342,-1468.88,0.00011095,2]
[352123492,1738955447352,-500.0,0.00011095,2]
[352123494,1738955447362,-500.0,0.00011095,2]
[352123496,1738955447371,-500.0,0.00011095,2]
[352123498,1738955447380,-500.0,0.00011095,2]
[352123500,1738955447389,-500.0,0.00011095,2]
[352123502,1738955447399,-6245.2,0.00011095,2]
[352123504,1738955447408,-500.0,0.00011095,2]
[352123506,1738955447418,-1914.48,0.00011095,2]
[352123508,1738955447427,-1138.83,0.00011095,2]
[352123510,1738955447436,-796.71,0.00011095,2]
[352123512,1738955447446,-700.56,0.00011095,2]
[352123514,1738955447455,-500.0,0.00011095,2]
[352123516,1738955447464,-5753.06,0.00011095,2]
[352123518,1738955447474,-500.0,0.00011095,2]
[352123520,1738955447483,-500.0,0.00011095,2]
[352123522,1738955447493,-500.0,0.00011095,2]
[352123524,1738955447502,-500.0,0.00011095,2]
[352123526,1738955447511,-613.08,0.00011095,2]
[352123528,1738955447521,-2729.47,0.00011095,2]
[352123530,1738955447532,-500.0,0.00011095,2]
[352123532,1738955447541,-604.13,0.00011095,2]
[352123534,1738955447551,-500.0,0.00011095,2]
[352123536,1738955447561,-500.0,0.00011095,2]
[352123538,1738955447570,-500.0,0.00011095,2]
[352123540,1738955447579,-1571.35,0.00011095,2]
[352123542,1738955447589,-500.0,0.00011095,2]
[352123544,1738955447598,-682.49,0.00011095,2]
[352123546,1738955447607,-2592.67,0.00011095,2]
[352123548,1738955447617,-500.0,0.00011095,2]
[352123550,1738955447626,-500.0,0.00011095,2]
[352123552,1738955447635,-500.0,0.00011095,2]
[352123554,1738955447645,-500.0,0.00011095,2]
[352123556,1738955447654,-509.59,0.00011095,2]
[352123558,1738955447664,-500.0,0.00011095,2]
[352123560,1738955447673,-891.94,0.00011095,2]
[352123562,1738955447682,-500.0,0.00011095,2]
[352123564,1738955447692,-630.52,0.00011095,2]
[352123566,1738955447701,-1625.96,0.00011095,2]
[352123568,1738955447711,-474.75528545,0.00011095,2]
[352123570,1738955447720,-500.0,0.00011095,2]
[352123572,1738955447729,-507.50269389,0.00011095,2]
[352123574,1738955447739,-500.0,0.00011095,2]
[352123576,1738955447748,-500.0,0.00011095,2]
[352123578,1738955447757,-500.0,0.00011095,2]
[352123580,1738955447766,-500.0,0.00011095,2]
[352123582,1738955447775,-500.0,0.00011095,2]
[352123584,1738955447785,-3706.91,0.00011095,2]
[352123586,1738955447794,-500.0,0.00011095,2]
[352123588,1738955447804,-500.0,0.00011095,2]
[352123590,1738955447813,-500.0,0.00011095,2]
[352123592,1738955447823,-14861.5,0.00011095,2]
[352123594,1738955447832,-500.0,0.00011095,2]
[352123596,1738955447841,-578.09,0.00011095,2]
[352123598,1738955447850,-500.0,0.00011095,2]
[352123600,1738955447860,-557.95,0.00011095,2]
[352123602,1738955447869,-500.0,0.00011095,2]
[352123604,1738955447879,-795.04,0.00011095,2]
[352123606,1738955447888,-500.0,0.00011095,2]
[352123608,1738955447897,-500.0,0.00011095,2]
[352123610,1738955447907,-1065.69,0.00011095,2]
[352123612,1738955447916,-731.3,0.00011095,2]
[352123614,1738955447926,-151.0,0.000111,2]
[352123616,1738955447936,-151.0,0.000111,2]
[352123618,1738955447946,-151.0,0.000111,2]
[352123620,1738955447955,-151.0,0.000111,2]
[352123622,1738955447965,-151.0,0.000111,2]
[352123624,1738955447974,-151.0,0.000111,2]
[352123626,1738955447984,-151.0,0.000111,2]
[352123628,1738955447994,-151.0,0.000111,2]
[352123630,1738955448003,-156.0,0.0001112,2]
[352123632,1738955448014,-156.0,0.0001112,2]
[352123634,1738955448024,-156.0,0.0001112,2]
[352123636,1738955448035,-288.97,0.0001112,2]
[352123638,1738955448055,-151.0,0.000112,2]
[352123640,1738955448065,-151.0,0.000112,2]
[352123642,1738955448076,-151.0,0.000112,2]
[352123644,1738955448087,-151.0,0.000112,2]
[352123646,1738955448098,-151.0,0.000112,2]
[352123648,1738955448108,-151.0,0.000112,2]
[352123650,1738955448118,-172.709297,0.00011232,2]
[352123652,1738955448127,-172.709297,0.00011232,2]
[352123654,1738955448137,-1503.343611,0.00011232,2]
[352123656,1738955448148,-1503.343611,0.00011232,2]
[352123658,1738955448158,-1503.343611,0.00011232,2]
[352123660,1738955448172,-1503.343611,0.00011232,2]
[352123662,1738955448183,-300.964955,0.00011232,2]
[352123664,1738955448193,-300.964955,0.00011232,2]
[352123666,1738955448202,-500.0,0.00011232,2]
[352123668,1738955448213,-500.0,0.00011232,2]
[352123670,1738955448223,-500.0,0.00011232,2]
[352123672,1738955448233,-271.01057,0.00011232,2]
[352123674,1738955448245,-271.01057,0.00011232,2]
[352123676,1738955448255,-271.01057,0.00011232,2]
[352123678,1738955448266,-271.01057,0.00011232,2]
[352123680,1738955448276,-500.0,0.00011232,2]
[352123682,1738955448286,-500.0,0.00011232,2]
[352123684,1738955448297,-500.0,0.00011232,2]
[352123686,1738955448307,-500.0,0.00011232,2]
[352123688,1738955448324,-500.0,0.00011232,2]
[352123689,1738955448337,-250.82977421,0.00011232,2]
[352123690,1738955448348,-566.03,0.00011232,2]
[352123691,1738955448358,-500.0,0.00011232,2]
[352123692,1738955448369,-500.0,0.00011232,2]
[352123693,1738955448380,-500.0,0.00011232,2]
[352123694,1738955448392,-500.0,0.00011232,2]
[352123695,1738955448403,-211.9742892,0.00011232,2]
[352123697,1738955448413,-643.55,0.00011232,2]
[352123699,1738955448424,-172.21898892,0.00011232,2]
[352123701,1738955448434,-190.82,0.00011232,2]
[352123703,1738955448444,-500.0,0.00011232,2]
[352123705,1738955448455,-500.0,0.00011232,2]
[352123707,1738955448465,-165.66850628,0.00011232,2]
[352123709,1738955448474,-500.0,0.00011232,2]
[352123711,1738955448485,-456.16193903,0.00011232,2]
[352123713,1738955448494,-500.0,0.00011232,2]
[352123715,1738955448504,-426.16087881,0.00011232,2]
[352123717,1738955448514,-308.73083876,0.00011232,2]
[352123719,1738955448526,-501.82839792,0.00011232,2]
[352123721,1738955448537,-468.19,0.00011232,2]
[352123723,1738955448547,-500.0,0.00011232,2]
[352123725,1738955448558,-500.0,0.00011232,2]
[352123727,1738955448568,-500.0,0.00011232,2]
[352123729,1738955448578,-500.0,0.00011232,2]
[352123731,1738955448587,-500.0,0.00011232,2]
[352123733,1738955448596,-500.0,0.00011232,2]
[352123735,1738955448606,-500.0,0.00011232,2]
[352123736,1738955448616,-500.0,0.00011232,2]
[352123739,1738955448626,-500.0,0.00011232,2]
[352123741,1738955448636,-500.0,0.00011232,2]
[352123743,1738955448646,-500.0,0.00011232,2]
[352123744,1738955448656,-500.0,0.00011232,2]
[352123747,1738955448666,-500.0,0.00011232,2]
[352123748,1738955448676,-500.0,0.00011232,2]
[352123750,1738955448686,-946.05,0.00011232,2]
[352123753,1738955448696,-553.95369155,0.00011232,2]
[352123754,1738955448706,-500.0,0.00011232,2]
[352123756,1738955448715,-500.0,0.00011232,2]
[352123758,1738955448725,-500.0,0.00011232,2]
[352123760,1738955448735,-500.0,0.00011232,2]
[352123762,1738955448745,-500.0,0.00011232,2]
[352123765,1738955448755,-500.0,0.00011232,2]
[352123766,1738955448765,-500.0,0.00011232,2]
[352123769,1738955448776,-1157.62,0.00011232,2]
[352123771,1738955448786,-500.0,0.00011232,2]
[352123773,1738955448796,-500.0,0.00011232,2]
[352123775,1738955448805,-500.0,0.00011232,2]
[352123777,1738955448815,-500.0,0.00011232,2]
[352123779,1738955448825,-500.0,0.00011232,2]
[352123781,1738955448836,-500.0,0.00011232,2]
[352123783,1738955448845,-228.63496614,0.00011232,2]
[352123785,1738955448855,-500.0,0.00011232,2]
[352123787,1738955448866,-500.0,0.00011232,2]
[352123789,1738955448876,-701.78,0.00011232,2]
[352123791,1738955448887,-500.0,0.00011232,2]
[352123793,1738955448897,-415.30339229,0.00011232,2]
[352123795,1738955448908,-500.0,0.00011232,2]
[352123797,1738955448918,-500.0,0.00011232,2]
[352123799,1738955448928,-500.0,0.00011232,2]
[352123801,1738955448937,-1228.14,0.00011232,2]
[352123803,1738955448947,-500.0,0.00011232,2]
[352123805,1738955448956,-500.0,0.00011232,2]
[352123807,1738955448966,-500.0,0.00011232,2]
[352123809,1738955448976,-500.0,0.00011232,2]
[352123811,1738955448986,-500.0,0.00011232,2]
[352123813,1738955448996,-500.0,0.00011232,2]
[352123815,1738955449006,-500.0,0.00011232,2]
[352123817,1738955449016,-500.0,0.00011232,2]
[352123819,1738955449026,-500.0,0.00011232,2]
[352123821,1738955449037,-500.0,0.00011232,2]
[352123823,1738955449047,-582.44,0.00011232,2]
[352123825,1738955449060,-500.0,0.00011232,2]
[352123828,1738955449071,-500.0,0.00011232,2]
[352123830,1738955449082,-500.0,0.00011232,2]
[352123832,1738955449092,-500.0,0.00011232,2]
[352123834,1738955449102,-278.83680919,0.00011232,2]
[352123836,1738955449112,-500.0,0.00011232,2]
[352123838,1738955449121,-500.0,0.00011232,2]
[352123840,1738955449131,-500.0,0.00011232,2]
[352123842,1738955449141,-510.73417257,0.00011232,2]
[352123844,1738955449151,-1254.58,0.00011232,2]
[352123846,1738955449161,-500.0,0.00011232,2]
[352123847,1738955449173,-500.0,0.00011232,2]
[352123849,1738955449183,-500.0,0.00011232,2]
[352123851,1738955449193,-820.57,0.00011232,2]
[352123853,1738955449204,-500.0,0.00011232,2]
[352123855,1738955449215,-500.0,0.00011232,2]
[352123858,1738955449226,-500.0,0.00011232,2]
[352123859,1738955449236,-863.99,0.00011232,2]
[352123862,1738955449247,-500.0,0.00011232,2]
[352123863,1738955449258,-500.0,0.00011232,2]
[352123865,1738955449269,-500.0,0.00011232,2]
[352123867,1738955449281,-500.0,0.00011232,2]
[352123869,1738955449291,-755.54,0.00011232,2]
[352123871,1738955449304,-500.0,0.00011232,2]
[352123873,1738955449314,-500.0,0.00011232,2]
[352123875,1738955449324,-799.74,0.00011232,2]
[352123877,1738955449334,-500.0,0.00011232,2]
[352123879,1738955449345,-500.0,0.00011232,2]
[352123881,1738955449354,-500.0,0.00011232,2]
[352123883,1738955449364,-500.0,0.00011232,2]
[352123885,1738955449373,-500.0,0.00011232,2]
[352123887,1738955449383,-500.0,0.00011232,2]
[352123889,1738955449392,-500.0,0.00011232,2]
[352123891,1738955449401,-500.0,0.00011232,2]
[352123893,1738955449410,-500.0,0.00011232,2]
[352123895,1738955449419,-500.0,0.00011232,2]
[352123897,1738955449429,-786.11,0.00011232,2]
[352123899,1738955449438,-500.0,0.00011232,2]
[352123902,1738955449447,-500.0,0.00011232,2]
[352123903,1738955449456,-551.9,0.00011232,2]
[352123906,1738955449465,-500.0,0.00011232,2]
[352123908,1738955449474,-536.57,0.00011232,2]
[352123910,1738955449484,-500.0,0.00011232,2]
[352123912,1738955449493,-500.0,0.00011232,2]
[352123913,1738955449505,-500.0,0.00011232,2]
[352123916,1738955449515,-500.0,0.00011232,2]
[352123918,1738955449524,-500.0,0.00011232,2]
[352123919,1738955449533,-500.0,0.00011232,2]
[352123922,1738955449542,-500.0,0.00011232,2]
[352123924,1738955449552,-500.0,0.00011232,2]
[352123926,1738955449562,-714.74,0.00011232,2]
[352123928,1738955449570,-151.0,0.00011232,2]
[352123930,1738955449580,-500.0,0.00011232,2]
[352123932,1738955449589,-754.06,0.00011232,2]
[352123934,1738955449597,-500.0,0.00011232,2]
[352123935,1738955449607,-500.0,0.00011232,2]
[352123937,1738955449616,-151.0,0.00011232,2]
[352123939,1738955449625,-1297.07,0.00011232,2]
[352123941,1738955449634,-500.0,0.00011232,2]
[352123943,1738955449643,-500.0,0.00011232,2]
[352123945,1738955449653,-500.0,0.00011232,2]
[352123947,1738955449663,-500.0,0.00011232,2]
[352123950,1738955449673,-500.0,0.00011232,2]
[352123952,1738955449681,-500.0,0.00011232,2]
[352123954,1738955449690,-500.0,0.00011232,2]
[352123956,1738955449699,-500.0,0.00011232,2]
[352123958,1738955449708,-525.17,0.00011232,2]
[352123960,1738955449717,-500.0,0.00011232,2]
[352123962,1738955449727,-500.0,0.00011232,2]
[352123964,1738955449736,-500.0,0.00011232,2]
[352123966,1738955449745,-500.0,0.00011232,2]
[352123968,1738955449754,-500.0,0.00011232,2]
[352123970,1738955449764,-500.0,0.00011232,2]
[352123972,1738955449772,-500.0,0.00011232,2]
[352123974,1738955449783,-936.28,0.00011232,2]
[352123976,1738955449792,-461.78918939,0.00011232,2]
[352123978,1738955449801,-500.0,0.00011232,2]
[352123979,1738955449810,-1407.23,0.00011232,2]
[352123981,1738955449819,-500.0,0.00011232,2]
[352123983,1738955449828,-500.0,0.00011232,2]
[352123986,1738955449838,-500.0,0.00011232,2]
[352123988,1738955449847,-696.18,0.00011232,2]
[352123990,1738955449856,-500.0,0.00011232,2]
[352123992,1738955449865,-500.0,0.00011232,2]
[352123994,1738955449874,-911.25,0.00011232,2]
[352123996,1738955449884,-6622.07,0.00011232,2]
[352123997,1738955449893,-640.95,0.00011232,2]
[352123999,1738955449902,-500.0,0.00011232,2]
[352124002,1738955449912,-500.0,0.00011232,2]
[352124003,1738955449921,-500.0,0.00011232,2]
[352124006,1738955449930,-500.0,0.00011232,2]
[352124007,1738955449939,-500.0,0.00011232,2]
[352124010,1738955449948,-500.0,0.00011232,2]
[352124012,1738955449957,-500.0,0.00011232,2]
[352124013,1738955449966,-1041.08,0.00011232,2]
[352124015,1738955449975,-500.0,0.00011232,2]
[352124018,1738955449985,-500.0,0.00011232,2]
[352124019,1738955449994,-828.08,0.00011232,2]
[352124034,1738955450112,-500.0,0.00011232,2]
[352124037,1738955450135,-500.0,0.00011232,2]
[352124039,1738955450145,-500.0,0.00011232,2]
[352124041,1738955450154,-500.0,0.00011232,2]
[352124043,1738955450166,-800.95,0.00011232,2]
[352124045,1738955450175,-3056.32,0.00011232,2]
[352124047,1738955450185,-500.0,0.00011232,2]
[352124049,1738955450194,-500.0,0.00011232,2]
[352124051,1738955450203,-4322.17,0.00011232,2]
[352124053,1738955450213,-3676.41,0.00011232,2]
[352124055,1738955450222,-500.0,0.00011232,2]
[352124057,1738955450231,-500.0,0.00011232,2]
[352124059,1738955450241,-500.0,0.00011232,2]
[352124061,1738955450250,-2123.82,0.00011232,2]
[352124063,1738955450260,-500.0,0.00011232,2]
[352124065,1738955450269,-500.0,0.00011232,2]
[352124066,1738955450278,-500.0,0.00011232,2]
[352124069,1738955450287,-245.01016387,0.00011232,2]
[352124070,1738955450296,-500.0,0.00011232,2]
[352124072,1738955450306,-4689.15,0.00011232,2]
[352124074,1738955450315,-500.0,0.00011232,2]
[352124077,1738955450324,-10250.45,0.00011232,2]
[352124078,1738955450334,-500.0,0.00011232,2]
[352124081,1738955450343,-335.01105814,0.00011232,2]
[352124083,1738955450352,-500.0,0.00011232,2]
[352124085,1738955450362,-1881.21,0.00011232,2]
[352124087,1738955450371,-932.82,0.00011232,2]
[352124088,1738955450381,-500.0,0.00011232,2]
[352124090,1738955450391,-500.0,0.00011232,2]
[352124092,1738955450400,-500.0,0.00011232,2]
[352124094,1738955450409,-815.63,0.00011232,2]
[352124096,1738955450418,-500.0,0.00011232,2]
[352124098,1738955450427,-151.0,0.00011232,2]
[352124100,1738955450437,-618.29,0.00011232,2]
[352124102,1738955450446,-500.0,0.00011232,2]
[352124104,1738955450456,-500.0,0.00011232,2]
[352124106,1738955450465,-500.0,0.00011232,2]
[352124108,1738955450475,-2066.24,0.00011232,2]
[352124110,1738955450484,-2086.49,0.00011232,2]
[352124112,1738955450493,-500.0,0.00011232,2]
[352124114,1738955450502,-31944.38,0.00011232,2]